Cogmind - Beta 16 @@@ ROGUE MODE // 2026.02.08 @ 23:08:21 Player: Asbjorn2 Result: Destroyed by P-60 Hacker with Shock Rifle Performance ------------- Evolutions (3) 1500 Regions Visited (7) 1400 Robots Destroyed (21) 105 Value Destroyed (649) 649 Prototype IDs (2) 40 Alien Tech Used (0) 0 Bonus (35) 35 TOTAL SCORE: 3729 Bonus ------- Follower Combat Kills 35 Cogmind --------- Core Integrity 0/700 Matter 210/300 Energy 99/100 System Corruption 3% Temperature Cool (0) Movement Core (50) Location -7/Factory Parts ------- > --- POWER (2) -------- (None) > --- PROPULSION (5) --- (None) > --- UTILITY (4) ------ (None) > --- WEAPON (2) ------- (None) > --- INVENTORY (5) ---- Micro Nuclear Core Improved Terrain Scanner Advanced ECM Suite Faulty Cooled Particle Cannon Peak State ------------ > --- POWER ------------ Light Nuclear Core Micro Nuclear Core > --- PROPULSION ------- Aluminum Leg Improved Aluminum Leg Improved Aluminum Leg Improved Aluminum Leg Titanium Leg > --- UTILITY ---------- Visual Processing Unit Improved Terrain Scanner Advanced ECM Suite > --- WEAPON ----------- Flak Gun Gauss Cannon > --- INVENTORY -------- Micro Nuclear Core Improved Terrain Scanner Cooled Particle Cannon Autogun [Rating: 35] Favorites ----------- Power Light Ion Engine Engine Light Ion Engine Power Core Light Nuclear Core Propulsion Flight Unit Leg Improved Aluminum Leg Flight Unit Flight Unit Utility Visual Processing Unit Device ECM Suite Storage Large Storage Unit Processor Visual Processing Unit Weapon Gauss Cannon Energy Gun EM Pulse Gun Energy Cannon EM Pulse Cannon Ballistic Gun Flak Gun Ballistic Cannon Gauss Cannon Launcher Grenade Launcher Special Weapon Mining Laser Build | -11 -10 -10 -10 -9 -8 -8 -7 ------- Run | Yrd Mat Min Exi Min Mat Sto Fac Slots Evolved 6 | . . . . . 4 . 2 Power 1 | . . . . . . . 1 Propulsion 3 | . . . . . 3 . . Utility 2 | . . . . . 1 . 1 Weapon . | . . . . . . . . Parts Attached 56 | 6 7 . . 1 9 10 23 Power 10 | 1 . . . . 1 2 6 Engine 3 | 1 . . . . 1 1 . Core 7 | . . . . . . 1 6 Reactor . | . . . . . . . . Propulsion 23 | 2 2 . . . 5 5 9 Treads . | . . . . . . . . Leg 11 | 2 . . . . . . 9 Wheel . | . . . . . . . . Hover . | . . . . . . . . Flight 12 | . 2 . . . 5 5 . Utility 9 | 1 3 . . . . 2 3 Device 6 | . 1 . . . . 2 3 Storage 2 | 1 1 . . . . . . Processor 1 | . 1 . . . . . . Hackware . | . . . . . . . . Protection . | . . . . . . . . Artifact . | . . . . . . . . Weapon 14 | 2 2 . . 1 3 1 5 Energy Gun 5 | 2 1 . . . . 1 1 Energy Cannon 2 | . . . . . 1 . 1 Ballistic Gun 3 | . 1 . . . . . 2 Ballistic Cannon 2 | . . . . . 1 . 1 Launcher 1 | . . . . . 1 . . Special Weapon 1 | . . . . 1 . . . Impact Weapon . | . . . . . . . . Slashing Weapon . | . . . . . . . . Piercing Weapon . | . . . . . . . . Special Melee Weapon . | . . . . . . . . Unidentified Prototypes 2 | . 1 . . . . . 1 Parts Lost 39 | . . . . . 3 9 27 Power 6 | . . . . . . 1 5 Propulsion 21 | . . . . . 1 6 14 Utility 4 | . . . . . 1 . 3 Weapon 8 | . . . . . 1 2 5 Highest Loss Streak 11 | . . . . . 2 8 11 To Critical Strikes . | . . . . . . . . Average Backups 5 | 1 10 5 4 4 4 3 4 Power . | . 1 1 1 1 1 1 . Propulsion 1 | 1 3 2 2 2 1 . . Utility 1 | . 2 1 . . . 1 1 Weapon 1 | . 4 1 1 1 2 . 1 Tool/Special . | . . . . . . . . Unused Backups 14 | 2 6 . 1 . 1 1 3 Power 1 | . . . . . 1 . . Propulsion 5 | 2 2 . . . . . 1 Utility 5 | . 1 . 1 . . 1 2 Weapon 3 | . 3 . . . . . . Tool/Special . | . . . . . . . . Average Slot Usage (%) 80 | . 86 85 85 85 78 79 75 Engine 7 | . 14 14 14 14 9 6 . Core 4 | . . . . . . 2 12 Leg 16 | . 25 . . . . . 30 Flight 17 | . 2 28 28 28 43 40 1 Device 7 | . . 14 14 14 3 6 9 Storage 2 | . 13 . . . . . . Processor 7 | . 2 14 14 14 9 9 6 Energy Gun 4 | . 15 . . . . 5 . Ballistic Gun 6 | . 12 14 14 1 . . 6 Ballistic Cannon 3 | . . . . . . 7 5 Special Weapon 1 | . . . . 12 1 2 . Peak Build Rating 35 | 6 11 9 9 10 16 19 35 Average Rating 16 | 4 8 9 9 7 12 14 26 On Entrance 8 | . 6 9 9 9 7 10 17 Avg Prop Armor Cover (%) 4 | . . . . . 4 3 . Naked Turns 17 | . . . . . . . 17 Heaviest Build 28 | 11 28 8 8 8 12 16 26 Greatest Support 66 | 20 20 8 8 8 20 20 66 Greatest Overweight (x) 3 | . 3 . . . . 1 3 Average Overweight (x) . | . . . . . . . . Largest Inventory Capacity 15 | 8 15 5 5 5 5 5 5 Average Capacity 6 | 7 14 5 5 5 5 5 5 Most Carried 15 | 3 15 5 5 5 5 5 5 Average Carried 5 | 1 10 5 4 4 4 3 4 Final Capacity 8 | 8 5 5 5 5 5 5 5 Final Carried 5 | 3 5 5 4 5 5 5 4 Class Distribution -------------------- 71% | Mutant 19% | Scavenger-Sprinter 8% | Scavenger-Mutant Dominant Class ---------------- Mutant | -10/Materials Mutant | -10/Mines Mutant | -10/Exiles Mutant | -9/Mines Scavenger-Sprinter | -8/Materials Scavenger-Sprinter | -8/Storage Mutant | -7/Factory Resources | -11 -10 -10 -10 -9 -8 -8 -7 ----------- Run | Yrd Mat Min Exi Min Mat Sto Fac Matter Collected 864 | 257 83 9 . 10 36 189 280 Remotely . | . . . . . . . . Salvage Created 619 | . . 54 . . 49 109 407 Parts 29 | . . 1 . . 9 7 12 Haulers Intercepted . | . . . . . . . . Recyclers Shooed . | . . . . . . . . Parts Field Recycled . | . . . . . . . . Retrieved Matter . | . . . . . . . . Parts Self-Destructed . | . . . . . . . . Prevented . | . . . . . . . . Parts Restored . | . . . . . . . . Kills | -11 -10 -10 -10 -9 -8 -8 -7 ------- Run | Yrd Mat Min Exi Min Mat Sto Fac Combat Hostiles Destroyed 20 | . . 1 . . 4 4 11 Guns 7 | . . 1 . . . 1 5 Cannons 11 | . . . . . 2 3 6 AOE 2 | . . . . . 2 . . Classes Destroyed 4 | . . 1 . . 1 1 1 Worker 1 | . . . . . . . 1 Swarmer 11 | . . . . . 4 2 5 Grunt 5 | . . 1 . . . . 4 Sentry 4 | . . . . . . 2 2 Best Kill Streak 4 | . . 1 . . 4 3 3 Combat Bots Only 4 | . . 1 . . 4 3 3 Max Kills in Single Turn 3 | . . 1 . . 3 1 1 Gunslinging . | . . . . . . . . Exploded 2 | . . . . . 2 . . Melee . | . . . . . . . . Uniques/NPCs Destroyed . | . . . . . . . . Combat | -11 -10 -10 -10 -9 -8 -8 -7 -------- Run | Yrd Mat Min Exi Min Mat Sto Fac Hostile Shots Fired 409 | . . 3 . . 41 101 264 Missed 156 | . . 3 . . 22 46 85 Hits 253 | . . . . . 19 55 179 Projectile 253 | . . . . . 19 55 179 AOE 2 | . . . . . . . 2 Critical Strikes 6 | . . . . . 2 3 1 Damage Taken 3610 | . 39 . . . 287 629 2655 Core 901 | . . . . . 66 132 703 Absorbed by Shields . | . . . . . . . . Regen/Repaired (Parts) 113 | . . . . . . 29 84 Core Remaining (%) 88 | 100 . . . 100 . 64 . Volleys Fired 51 | . . 3 . . 4 13 31 Largest 2 | . . 1 . . 2 2 2 Hottest 100 | . . 23 . . 100 93 77 Shots Fired 72 | . . 3 . . 5 17 47 Gun 37 | . . 3 . . . 4 30 Cannon 33 | . . . . . 3 13 17 Launcher 1 | . . . . . 1 . . Special 1 | . . . . . 1 . . Kinetic 59 | . . 3 . . . 13 43 Thermal 5 | . . . . . 1 4 . Explosive 1 | . . . . . 1 . . Electromagnetic 7 | . . . . . 3 . 4 Robot Hit Streak 8 | . . 2 . . 5 5 8 Robot Miss Streak 9 | . . 1 . . . 3 9 Penetration Max . | . . . . . . . . Secondary Targets . | . . . . . . . . Shots Hit Robots 45 | . . 2 . . 3 7 33 Core Hits 41 | . . 1 . . 5 4 31 Critical Kills 1 | . . 1 . . . . . Critical Parts Destroyed . | . . . . . . . . Critical Strikes 2 | . . 1 . . . . 1 Destroy 1 | . . 1 . . . . . Blast 1 | . . . . . . . 1 Melee Attacks . | . . . . . . . . Impact . | . . . . . . . . Slashing . | . . . . . . . . Piercing . | . . . . . . . . Sneak Attacks . | . . . . . . . . Combat Hostiles . | . . . . . . . . Follow-up Attacks . | . . . . . . . . Damage Inflicted 1111 | . . 31 . . 170 181 729 Guns 404 | . . 31 . . . 29 344 Cannons 502 | . . . . . 68 150 284 Explosions 192 | . . . . . 102 . 90 Melee . | . . . . . . . . Ramming 13 | . . . . . . 2 11 Kinetic 757 | . . 31 . . . 150 576 Thermal 119 | . . . . . . 29 90 Explosive 102 | . . . . . 102 . . Electromagnetic 120 | . . . . . 68 . 52 Impact . | . . . . . . . . Slashing . | . . . . . . . . Piercing . | . . . . . . . . Highest Corruption 3 | . . . . . . . 3 Average Corruption 2 | . . . . . . . 2 Corruption Purged . | . . . . . . . . Corruption Blocked . | . . . . . . . . Effects 4 | . . . . . . . 4 Heat Flow Errors 1 | . . . . . . . 1 Energy Discharges 1 | . . . . . . . 1 Data Loss (minor) 1 | . . . . . . . 1 Alerts 1 | . . . . . . . 1 Overload Shots . | . . . . . . . . Overflow Damage 1 | . . . . . 1 . . Projectiles . | . . . . . . . . Explosions 1 | . . . . . 1 . . Melee . | . . . . . . . . Knockbacks 3 | . . . . . . . 3 Impact 1 | . . . . . . . 1 Kinetic 2 | . . . . . . . 2 Secondary . | . . . . . . . . Self-Inflicted Damage 25 | . . . . . 20 1 4 Shots 1 | . . . . . 1 . . Rammed 6 | . . . . . . 1 5 Targets Rammed 6 | . . . . . . 1 5 Kicked . | . . . . . . . . Crushed . | . . . . . . . . Highest Temperature 120 | . . . . . 40 120 110 Average Temperature 35 | . . . . . 17 47 23 Received Heat Transfer 618 | . . . . . 108 162 348 Siege Activations . | . . . . . . . . Martial Activations . | . . . . . . . . Shielding Activations . | . . . . . . . . Robots Disrupted . | . . . . . . . . Combat Hostiles . | . . . . . . . . Robots Corrupted . | . . . . . . . . Combat Hostiles . | . . . . . . . . Parts Fried . | . . . . . . . . Impact Corruptions . | . . . . . . . . Robots Melted . | . . . . . . . . Combat Hostiles . | . . . . . . . . Parts Melted 1 | . . . . . . . 1 Heat Transferred 224 | . . . . . . 74 150 Parts Sabotaged . | . . . . . . . . Parts Stolen . | . . . . . . . . Parts Stripped . | . . . . . . . . Power Chain Reactions 1 | . . . . . . . 1 Alert | -11 -10 -10 -10 -9 -8 -8 -7 ------- Run | Yrd Mat Min Exi Min Mat Sto Fac Maximum Alert Level . | . . . . . . . . Low Security (%) 100 | 100 100 100 . 100 100 100 100 Level 1 . | . . . . . . . . Level 2 . | . . . . . . . . Level 3 . | . . . . . . . . Level 4 . | . . . . . . . . Level 5 . | . . . . . . . . High Security . | . . . . . . . . Max Security . | . . . . . . . . Peak Influence 197 | . . 30 . . 197 194 119 Initial 89 | . . . . . . 89 67 Average 49 | . . 10 . . 66 149 40 Influence Increases 981 | . . 30 . . 282 339 330 Destroy 0b10 Robot/C 460 | . . 20 . . 80 140 220 Destroy 0b10 Robot/NC 5 | . . . . . . . 5 Destroy Leader 120 | . . 10 . . 10 60 40 Allied During Kill 3 | . . . . . . 3 . Successful Hack 15 | . . . . . . 12 3 Disable Machine 30 | . . . . . . 15 15 Destroy Structure 48 | . . . . . 12 4 32 Partial Spotted 75 | . . . . . . 75 . Lose Combat Pursuer 225 | . . . . . 180 30 15 Influence Decreases 981 | . . 10 20 . 70 403 478 Entered New Map 224 | . . . 20 . . 123 81 Time Decay 426 | . . 10 . . 50 150 216 Lost Part 291 | . . . . . 20 90 181 Lost Ally 40 | . . . . . . 40 . Squads Dispatched 15 | . . . . . 3 5 7 Investigation 5 | . . . . . 2 1 2 Extermination 1 | . . . . . . . 1 Reinforcement 4 | . . . . . 1 2 1 Assault 2 | . . . . . . 2 . Garrison 3 | . . . . . . . 3 Intercept . | . . . . . . . . Searches Triggered . | . . . . . . . . Construction Impeded . | . . . . . . . . Haulers Reinforced . | . . . . . . . . Active Scanning Responses . | . . . . . . . . Cargo Convoy Interrupts . | . . . . . . . . Stealth | -11 -10 -10 -10 -9 -8 -8 -7 --------- Run | Yrd Mat Min Exi Min Mat Sto Fac Distress Signals 3 | . . . . . . 2 1 Communications Jammed . | . . . . . . . . Distress Signals . | . . . . . . . . Times Spotted 86 | . . 3 . . 22 39 22 Peak Tracking Total 11 | . . 2 . . 10 11 8 Tactical Retreats 13 | . . 2 . . 3 7 1 ECM-based Alert Blocks 24 | . . 2 . . . 22 . Traps | -11 -10 -10 -10 -9 -8 -8 -7 ------- Run | Yrd Mat Min Exi Min Mat Sto Fac Traps Triggered 3 | . 1 . . . 1 . 1 Indirectly . | . . . . . . . . Trap Hack Attempts . | . . . . . . . . Triggered . | . . . . . . . . Disarmed . | . . . . . . . . Reprogrammed . | . . . . . . . . Reused . | . . . . . . . . Traps Extracted . | . . . . . . . . Installed . | . . . . . . . . Triggered . | . . . . . . . . Machines | -11 -10 -10 -10 -9 -8 -8 -7 ---------- Run | Yrd Mat Min Exi Min Mat Sto Fac Machines Disabled 2 | . . . . . . 1 1 Max in Single Turn 1 | . . . . . . 1 1 Machines Repaired . | . . . . . . . . Machines Dismantled . | . . . . . . . . Machines Sabotaged . | . . . . . . . . Overloaded Fab Kills . | . . . . . . . . Hacking | -11 -10 -10 -10 -9 -8 -8 -7 --------- Run | Yrd Mat Min Exi Min Mat Sto Fac Machines Accessed 7 | . . . 1 . . 3 3 Terminals 2 | . . . . . . 2 . Fabricators 1 | . . . . . . . 1 Repair Stations 2 | . . . . . . 1 1 Recycling Units . | . . . . . . . . Scanalyzers 1 | . . . . . . . 1 Garrison Access . | . . . . . . . . Total Hacks 25 | . . . 1 . . 11 13 Successful 13 | . . . 1 . . 5 7 Failed 11 | . . . . . . 6 5 Catastrophic . | . . . . . . . . Database Lockouts 1 | . . . . . . . 1 Manual . | . . . . . . . . Terminals 5 | . . . . . . 5 . Fabricators 3 | . . . . . . . 3 Repair Stations 9 | . . . . . . 6 3 Recycling Units . | . . . . . . . . Scanalyzers 7 | . . . . . . . 7 Garrison Access . | . . . . . . . . Terminal Hacks 2 | . . . 1 . . 1 . Record 1 | . . . 1 . . . . Open Door 1 | . . . . . . 1 . Fabricator Hacks 1 | . . . . . . . 1 Load Schematic 1 | . . . . . . . 1 Repair Station Hacks 6 | . . . . . . 4 2 Scan Component 3 | . . . . . . 2 1 Repair 3 | . . . . . . 2 1 Recycling Unit Hacks . | . . . . . . . . Scanalyzer 4 | . . . . . . . 4 Insert Component 1 | . . . . . . . 1 Analyze 2 | . . . . . . . 2 Retrieve Study 1 | . . . . . . . 1 Garrison Access Hacks . | . . . . . . . . Unauthorized Hacks . | . . . . . . . . Terminals . | . . . . . . . . Fabricators . | . . . . . . . . Repair Stations . | . . . . . . . . Recycling Units . | . . . . . . . . Scanalyzers . | . . . . . . . . Garrison Access . | . . . . . . . . Data Cores Recovered . | . . . . . . . . Used . | . . . . . . . . Hacking Detections 5 | . . . . . . 2 3 Full Trace Events 3 | . . . . . . 1 2 Feedback Events . | . . . . . . . . Feedback Blocked . | . . . . . . . . Robot Schematics Acquired . | . . . . . . . . Robots Built . | . . . . . . . . Authchips . | . . . . . . . . Time . | . . . . . . . . Total Robot Build Rating . | . . . . . . . . Part Schematics Acquired 1 | . . . . . . . 1 Parts Built . | . . . . . . . . Authchips . | . . . . . . . . Time . | . . . . . . . . Total Part Build Rating . | . . . . . . . . Part Studies Acquired 1 | . . . . . . . 1 Parts Repaired 3 | . . . . . . 2 1 Time 84 | . . . . . . 52 32 Parts Recycled . | . . . . . . . . Recycled Matter . | . . . . . . . . Retrieved Matter . | . . . . . . . . Retrieved Components . | . . . . . . . . Parts Scanalyzed 1 | . . . . . . . 1 Part Schematics Acquired 1 | . . . . . . . 1 Parts Damaged . | . . . . . . . . Bothacking | -11 -10 -10 -10 -9 -8 -8 -7 ------------ Run | Yrd Mat Min Exi Min Mat Sto Fac Used RIF Installer . | . . . . . . . . Robots Hacked . | . . . . . . . . Non-combat . | . . . . . . . . Combat . | . . . . . . . . Robot Hacks Applied . | . . . . . . . . Relay Couplers Released . | . . . . . . . . Fabnet Peak Effective % . | . . . . . . . . Robots Rewired . | . . . . . . . . Allies Hacked . | . . . . . . . . Hacks Repelled . | . . . . . . . . Allies | -11 -10 -10 -10 -9 -8 -8 -7 -------- Run | Yrd Mat Min Exi Min Mat Sto Fac Total Allies 6 | . . . . 4 . 2 . Largest Group 4 | . . . . 4 . 2 . Highest-Rated Group 71 | . . . . 71 . 62 . Highest-Rated Ally 31 | . . . . 31 . 31 . Total Orders . | . . . . . . . . Ally Attacks 13 | . . . . . . 13 . Total Damage 231 | . . . . . . 231 . Kills 3 | . . . . . . 3 . Allies Corrupted . | . . . . . . . . Allies Melted . | . . . . . . . . Intel | -11 -10 -10 -10 -9 -8 -8 -7 ------- Run | Yrd Mat Min Exi Min Mat Sto Fac Active Infowar (turns) 1439 | . 56 59 116 84 181 312 631 Optics 1439 | . 56 59 116 84 181 312 631 Terrain 253 | . . . . . . 48 205 ECM 719 | . 20 59 116 84 75 191 174 Robot Analysis Total . | . . . . . . . . Derelict Logs Recovered . | . . . . . . . . Drone Launches . | . . . . . . . . Drone Recoveries . | . . . . . . . . Exploration | -11 -10 -10 -10 -9 -8 -8 -7 ------------- Run | Yrd Mat Min Exi Min Mat Sto Fac Turns Passed 1843 | 70 373 59 116 84 181 312 648 Spaces Moved 2497 | 53 218 142 312 215 429 680 448 Core 48 | 11 . . . . . . 37 Treads . | . . . . . . . . Legs 591 | 42 170 . . . . . 379 Wheels . | . . . . . . . . Hover . | . . . . . . . . Flight 1858 | . 48 142 312 215 429 680 32 Fastest Speed 27 | 50 37 37 37 37 27 27 28 Average Speed 57 | 105 157 37 37 37 31 29 102 Slowest Speed 277 | 120 277 37 37 37 34 117 200 Overloaded Moves . | . . . . . . . . Propulsion Burnouts . | . . . . . . . . Robots Hopped 24 | . 1 . . . 6 17 . Potential Cave-ins . | . . . . . . . . Cave-ins Triggered . | . . . . . . . . Exploration Rate (%) 47 | 4 35 40 77 61 55 91 14 Regions Visited 7 Branch Regions 4 Pre-discovered Areas 1 | . . . 1 . . . . Known Exits Taken . | . . . . . . . . Unknown Exits Taken 7 | 1 1 1 1 1 1 1 . Scrap Searched 4 | . . . . 4 . . . Spaces Dug 1 | . . . . . 1 . . Terrain Destroyed 53 | . . . . . 12 3 38 Melee . | . . . . . . . . Projectile 12 | . . . . . 1 3 8 AOE 41 | . . . . . 11 . 30 Terrain Rammed . | . . . . . . . . Walls Destroyed . | . . . . . . . . Machines Disabled . | . . . . . . . . Actions | -11 -10 -10 -10 -9 -8 -8 -7 --------- Run | Yrd Mat Min Exi Min Mat Sto Fac Total 2798 | 65 255 144 312 219 461 755 587 Wait 128 | . . . . 1 13 55 59 Move 2445 | 52 215 141 311 214 416 648 448 Hop 21 | . 1 . . . 6 14 . Pick Up 38 | 5 12 . . 1 5 7 8 Fast Attach 34 | 6 3 . . 1 3 8 13 Attach 26 | . 5 . . . 6 5 10 Detach 13 | . 6 . . 1 3 . 3 Swap 7 | . . . . . 2 1 4 Drop 29 | 2 13 . 1 1 3 3 6 Fire 51 | . . 3 . . 4 13 31 Melee . | . . . . . . . . Ram 6 | . . . . . . 1 5 Kick . | . . . . . . . . Crush . | . . . . . . . . Escape Stasis . | . . . . . . . . Rewire . | . . . . . . . . Trap . | . . . . . . . . Miscellaneous . | . . . . . . . . Route ------- -11/Scrapyard -10/Materials -10/Mines -10/Exiles -9/Mines -8/Materials (discovered 2 exits: *Fac / *Sto) -8/Storage -7/Factory History --------- Turn | Location | Event 9 | -11/Scrapyard | Discovered new exit (range 16) 71 | -11/Scrapyard | Entered Materials 72 | -10/Materials | Met a group of wandering Federalists 314 | -10/Materials | Build established: Mutant 439 | -10/Materials | Discovered new exit (range 10) 444 | -10/Materials | Entered Mines 454 | -10/Mines | A weapon hastily lodged in a ceiling crevice suddenly fell to the ground 501 | -10/Mines | Deemed a non-threat by the Exiles lab entrance 501 | -10/Mines | Discovered new exit (range 5) 503 | -10/Mines | Entered Exiles 512 | -10/Exiles | Met 8R-AWN 519 | -10/Exiles | Met EX-HEX 532 | -10/Exiles | Met EX-DEC 540 | -10/Exiles | Visited The Gauntlet 584 | -10/Exiles | Learned location of Zion (-7) 601 | -10/Exiles | Discovered new exit (range 10) 619 | -10/Exiles | Entered Mines 622 | -9/Mines | Received a Mining Laser from a helpful Derelict 635 | -9/Mines | Assisted by bots powering up and referring to "LRC-V3" 699 | -9/Mines | Discovered new exit (range 11) 703 | -9/Mines | Entered Materials 703 | -8/Materials | Evolved 4 slots: Propulsion x3, Utility x1 787 | -8/Materials | Met 7R-MNS 877 | -8/Materials | Discovered new exit (range 18) 884 | -8/Materials | Discovered new exit (range 9) 884 | -8/Materials | Entered Storage 904 | -8/Storage | Met a pair of Derelict thieves 1009 | -8/Storage | Lost 8 parts (1p6n1w) 1046 | -8/Storage | Repaired Flight Unit 1074 | -8/Storage | Repaired Flight Unit 1194 | -8/Storage | Discovered new exit (range 6) 1196 | -8/Storage | Entered Factory 1196 | -7/Factory | Evolved 2 slots: Power x1, Utility x1 1237 | -7/Factory | Garrison activated, responded to threat 1268 | -7/Factory | Lost 10 parts (2p5n1u2w) 1421 | -7/Factory | Central database locked down 1719 | -7/Factory | Repaired Imp. Aluminum Leg+ 1774 | -7/Factory | Lost 4 parts (3n1w) 1813 | -7/Factory | Core integrity fell below 50% 1835 | -7/Factory | Core integrity fell below 20% 1844 | -7/Factory | Destroyed by P-60 Hacker with Shock Rifle Last Messages --------------- 01807_ Aluminum Leg destroyed. 01812_ S-27 Virus destroyed. 01812_ Autogun destroyed. 01814_ Identified Cld. Particle Cannon. 01814_ Faulty integration triggers energy drain (-105). 01815_ U-05 Engineer lays Concrete. 01815_ Imp. Aluminum Leg+ destroyed. 01817_ U-05 Engineer lays Concrete. 01817_ Titanium Leg destroyed. 01818_ Mic. Nuclear Core destroyed. 01818_ U-05 Engineer lays Concrete. 01821_ Imp. Terrain Scanner destroyed. 01827_ Visual Processing Unit destroyed. 01833_ Slammed into T-07 Excavator. 01834_ Slammed into S-27 Virus. 01836_ Slammed into P-60 Hacker. 01836_ P-60 Hacker knocked back. 01837_ Slammed into P-60 Hacker. 01838_ ALERT: Hostiles spotted, dispatching reinforcements to Terminal F011. 01841_ O-16 Technician: "IFF HANDSHAKE FAILED. SECURING TERMINAL." Map ----- +----------------------------------------------------+ | ??????????????????????????????????????# """ | | ??????????????????????????????????????#""" """ | | ??????????????????????????????????????#"F" | | ?????????????????????########?????????#" """ | | ?????????????????????# T #?????????#""" """ | | ?????????????????????# #?????????#""" """ | | ?????????????????????# #?????????# | | ?????????????????????# #??#??????#########+## | | ?????????????????????# #???#???#??#??#?# | | ?????????????????????# #?????????#?????# | | ?????????????????????####+###?????????####### | | ???????????? "" ###### #########??# | | ????????# / #??# | | ????????# ###### ## #??# | | ???????????????????????## ### #??# | | ????????????????????????# #?# !#??# | | ????????????????????????# #?# #?## | | ????????????????????????# #?# #??# | | ????????????????????????# #?###s####### | | ?????????????????######## #####p | | ??????????????? t ######%% | | ???????????????????#### % # ! % | | ???????????????????? /o + [ % | | ??????????????????????# # #%[ | | ??????????????????????# """ """ """ # # | | ??????????????????????# @ """ """ """ # # | | ??????????????????????# """ """ """ ####### | | ??????????????????????# ####### | | ??????????????????????# ! w ! / | | ??????????????????????# ####################### | | ??????????????????????# #????? ????? ??#??????? | | ??????????????????????# #??????????????????#??# | | ?????????????????????? k +?????????????????????? | | ????????????????????? #???????????????###?#?? | | ????????????????????? #?????????????????#???? | | ?????????????????????#### ##?????????????????????? | | ????????????????????????# ???????????????#???????? | | ????????????????????????# ?????????????????????#?? | | ????????????????????????? ???????????????????????? | | ????????????????????????? ?????????????????????#?? | | ?????????????????????????g???????????????????????? | | ?????????????????????????????????????????????????? | | ?????????????????????????????????????????????????? | | ?????????????????????????????????????????????????? | | ?????????????????????????????????????????????????? | | ?????????????????????????????????????????????????? | | ?????????????????????????????????????????????????? | | ?????????????????????????????????????????????????? | | ?????????????????????????????????????????????????? | | ?????????????????????????????????????????????????? | +----------------------------------------------------+ Best States ------------- Heat Dissipation 34 Energy Generation 24 Energy Capacity 220 Matter Stores 300 Matter Capacity 300 Sight Range 18 Terrain Scan Range 16 Terrain Scan Density 10 ECM Strength 2 Evasion (%) 64 Item Schematics ----------------- Imp. Aluminum Leg | -7/Factory | Scanalyzed Robot Schematics ------------------ None Fabricated ------------ Nothing Repaired ---------- Flight Unit | 25% | -8/Storage Flight Unit | 30% | -8/Storage Imp. Aluminum Leg | 16% | -7/Factory Studied --------- Imp. Aluminum Leg | -7/Factory | Hacked Alien Tech Used ----------------- None Achievements -------------- Part-time Mechanic Challenges ------------ None Game ------ Seed GodPhysicsKinecellerator Manual? 0 Play Time 00:44:11 Cumulative 6.6 hours Start 2026.02.08 @ 22:18:21 End 2026.02.08 @ 23:08:21 Sessions 1 Manual Loads 0 Difficulty Rogue Special Mode None Game No. 6 Rogue 5 Adventurer 0 Explorer 1 Win Type - Total 0 Types 0/0/0/0/0/0/0/0/0/0 Lore% 2 Gallery% 10 Achievement% 10 Wizard Run 0 Options --------- Layout 0 ASCII 1 Keyboard 1 Movement Vi Keybinds 0 Fullscreen 0 Font 32/SmallcapsGlow Map View 88x55 Zoom Use 0% Tactical HUD 1 Map Filters NONE Filters NONE Steam 0 RUN: a1f76f9e-161a-449f-a91b-ef80deb668a3